Cogmind - Beta 12 @@@ ROGUE MODE // 2023.09.12 @ 00:19:22 Player: DuckBoy Result: Destroyed by Tiamat Bomb Trap Performance ------------- Evolutions (8) 4000 Regions Visited (32) 6400 Robots Destroyed (337) 1685 Value Destroyed (16953) 16953 Prototype IDs (33) 660 Alien Tech Used (0) 0 Bonus (12497) 12497 TOTAL SCORE: 42195 Bonus ------- Triggered Max Security 1000 High Alert Combat Kills 1943 Follower Combat Kills 4766 Entered Garrisons 2000 Used RIF Installer 3500 Aligned with FarCom 300 Friendly Fire -1012 Cogmind --------- Core Integrity 0/1450 Matter 214/300 Energy 146/150 System Corruption 41% Temperature Cool (10) Movement Flying (26) Location -2/Testing Parts ------- > --- POWER (3) -------- Micro Fission Core > --- PROPULSION (6) --- Xenon Bombardment Thruster Xenon Bombardment Thruster Xenon Bombardment Thruster Field Propulsion Array Cooled Q-thruster > --- UTILITY (11) ----- Advanced Heat Sink Relay Coupler [NC] (17) Relay Coupler [Sentry] (2) > --- WEAPON (3) ------- Heavy Tesla Rifle Enhanced Quantum Rifle > --- INVENTORY (5) ---- Quantum Reactor Relay Coupler [NC] (35) Relay Coupler [NC] (32) Peak State ------------ > --- POWER ------------ Light Particle Reactor Light Quantum Reactor Reinforced Quantum Reactor > --- PROPULSION ------- Biometal Heavy Treads Biometal Heavy Treads Centrium Wheel Centrium Wheel > --- UTILITY ---------- Advanced Heat Sink Advanced Heat Sink Advanced Heat Sink Huge Storage Unit Graphene Brace Advanced Force Field Improved System Shield Relay Coupler [NC] Relay Coupler [Grunt] Relay Coupler [Sentry] Relay Coupler [Heavy] > --- WEAPON ----------- Enhanced Quantum Rifle Enhanced Nova Cannon Railgun > --- INVENTORY -------- Micro Fission Core Micro Fission Core Light Antimatter Reactor Light Antimatter Reactor Quantum Reactor Advanced Heat Sink Authchip [R/Combat] Authchip [R/Combat] Authchip [R/Combat] Authchip [R/Combat] Relay Coupler [NC] Relay Coupler [NC] Relay Coupler [Brawler] Gamma Rifle Enhanced Quantum Rifle Enhanced Quantum Rifle Enhanced Quantum Rifle Enhanced Quantum Rifle Enhanced Nova Cannon Gamma Bomb Array Improved Remote Datajack Improved Remote Datajack Advanced Remote Datajack Plasma Lance [Rating: 166] Favorites ----------- Power Micro Nuclear Core Engine Improved Ion Engine Power Core Micro Nuclear Core Reactor Reinforced Quantum Reactor Propulsion Wheel Treads Light Treads Leg Carbon-fiber Leg Wheel Wheel Flight Unit Xenon Bombardment Thruster Utility Huge Storage Unit Device Advanced Heat Sink Storage Huge Storage Unit Processor Advanced Launcher Guidance Computer Hackware Hacking Suite Protection Improved Medium Armor Plating Weapon Flak Gun Energy Gun Wave Gun Energy Cannon Advanced Beam Cannon Ballistic Gun Flak Gun Ballistic Cannon Hardcell Cannon Launcher Proton Missile Launcher Special Weapon Remote Datajack Impact Weapon Powered Hammer Slashing Weapon Makeshift Axe Piercing Weapon Plasma Lance Special Melee Weapon Improved Datajack Build | -11 -10 -9 -9 -9 -8 -8 -8 -8 -8 -8 -8 -7 -7 -6 -6 -5 -5 -5 -5 -4 -4 -4 -4 -4 -3 -3 -2 -2 -2 -2 -2 -2 ------- Run | Jun Mat Mat Min Exi Min Mat Gar Mat Gar Mat Gar Fac Gar Fac Gar Fac Upp Upp War Pro Fac Gar Fac Gar Res Gar Res Gar Res Gar Res Tes Slots Evolved 16 | . . 2 . . . 2 . . . . . 2 . 2 . 2 . . . . 2 . . . 2 . 2 . . . . . Power 2 | . . 1 . . . . . . . . . . . . . . . . . . . . . . 1 . . . . . . . Propulsion 4 | . . . . . . 1 . . . . . 1 . . . . . . . . . . . . 1 . 1 . . . . . Utility 9 | . . . . . . 1 . . . . . 1 . 2 . 2 . . . . 2 . . . . . 1 . . . . . Weapon 1 | . . 1 . . . . . . . . . . . . . . . . . . . . . . . . . . . . . . Parts Attached 467 | 5 6 22 9 1 4 35 16 14 26 4 9 32 6 13 29 41 10 17 . 5 28 57 3 15 3 10 10 9 . 23 1 4 Power 58 | . 1 3 2 . 2 2 6 2 4 1 . 2 . . 1 4 1 1 . . 7 5 . 4 1 2 1 1 . 4 . 1 Engine 12 | . 1 3 1 . 1 . 2 1 . . . . . . 1 1 . . . . 1 . . . . . . . . . . . Core 34 | . . . 1 . 1 2 4 1 4 1 . 2 . . . 3 1 1 . . 5 3 . 3 1 . . . . 1 . . Reactor 12 | . . . . . . . . . . . . . . . . . . . . . 1 2 . 1 . 2 1 1 . 3 . 1 Propulsion 90 | 2 3 5 2 . . 6 4 2 4 . 1 6 . . 5 12 4 4 . . 4 9 3 . 1 2 1 . . 8 . 2 Treads 44 | . 2 3 2 . . 5 3 2 4 . . . . . 4 3 3 1 . . . 8 1 . 1 2 . . . . . . Leg 2 | . . . . . . . . . . . . . . . . . . 2 . . . . . . . . . . . . . . Wheel 34 | 2 1 2 . . . 1 1 . . . 1 5 . . 1 9 1 1 . . 4 1 2 . . . 1 . . 1 . . Hover . | . . . . . . . . . . . . . . . . . . . . . . . . . . . . . . . . . Flight 10 | . . . . . . . . . . . . 1 . . . . . . . . . . . . . . . . . 7 . 2 Utility 132 | 1 2 2 2 . . 7 3 1 4 2 1 15 1 8 9 9 2 3 . 3 13 21 . 5 . 4 8 3 . 3 . . Device 57 | . 1 1 1 . . 2 1 1 4 . 1 1 . . 3 6 . 2 . 2 8 10 . 4 . 3 1 2 . 3 . . Storage 6 | 1 1 . 1 . . 2 . . . . . . . . . . . . . . 1 . . . . . . . . . . . Processor 1 | . . . . . . . . . . . . . . . . . . . . . . . . . . 1 . . . . . . Hackware 49 | . . . . . . . 1 . . 2 . 14 1 8 4 2 . . . . 4 5 . 1 . . 7 . . . . . Protection 19 | . . 1 . . . 3 1 . . . . . . . 2 1 2 1 . 1 . 6 . . . . . 1 . . . . Artifact . | . . . . . . . . . . . . . . . . . . . . . . . . . . . . . . . . . Weapon 187 | 2 . 12 3 1 2 20 3 9 14 1 7 9 5 5 14 16 3 9 . 2 4 22 . 6 1 2 . 5 . 8 1 1 Energy Gun 57 | . . 6 2 . . 7 . . 3 . 3 2 . . 3 8 1 2 . 2 . 8 . 2 . . . 2 . 4 1 1 Energy Cannon 25 | . . . . . . 1 1 1 4 . . 1 2 1 2 1 1 1 . . 1 6 . . . . . 2 . . . . Ballistic Gun 36 | 2 . 5 . 1 . 8 2 3 4 . 1 3 . . 2 . 1 1 . . 1 1 . . . . . . . 1 . . Ballistic Cannon 8 | . . . . . . 2 . . . . . . . . . 2 . 1 . . . 1 . 2 . . . . . . . . Launcher 22 | . . . . . 2 2 . 5 2 . 3 . 2 1 1 1 . . . . . 1 . . . 1 . . . 1 . . Special Weapon 21 | . . . . . . . . . . 1 . 1 1 2 4 2 . 2 . . 1 4 . 1 . 1 . 1 . . . . Impact Weapon 2 | . . . . . . . . . . . . . . . . 1 . 1 . . . . . . . . . . . . . . Slashing Weapon 4 | . . . . . . . . . . . . . . . . . . 1 . . 1 1 . 1 . . . . . . . . Piercing Weapon 5 | . . . 1 . . . . . 1 . . . . . . . . . . . . . . . 1 . . . . 2 . . Special Melee Weapon 7 | . . 1 . . . . . . . . . 2 . 1 2 1 . . . . . . . . . . . . . . . . Unidentified Prototypes 8 | . . . . . . 4 . . . . . 1 . . . . . . . . . . . . 1 . . . . . 1 1 Corrupted Parts 18 | . . . 4 . . 1 . 1 2 . . . . . . . 4 3 . . . . . . . . . 1 . 2 . . System Corruption 92 | . . . 10 . . 10 . 4 9 . . . . . . . 10 27 . . . . . . . . . 9 . 13 . . Parts Lost 154 | . . 8 . . 2 5 5 1 14 . 3 4 . . 7 14 10 4 . 4 7 22 . 9 1 3 . 1 1 29 . . Power 27 | . . 2 . . 1 2 2 . 3 . . 1 . . . 1 . . . 1 2 4 . 2 . . . . . 6 . . Propulsion 38 | . . 1 . . . . . 1 3 . 1 3 . . 4 7 4 2 . 1 . 4 . . . . . . . 7 . . Utility 41 | . . 1 . . . . . . 2 . 1 . . . 1 1 4 2 . 1 4 7 . 4 . 2 . 1 1 9 . . Weapon 48 | . . 4 . . 1 3 3 . 6 . 1 . . . 2 5 2 . . 1 1 7 . 3 1 1 . . . 7 . . Highest Loss Streak 25 | . . 3 . . 2 2 3 1 5 . 2 2 . . 3 4 5 1 . 3 3 7 . 4 1 1 . 1 1 25 . . To Critical Strikes . | . . . . . . . . . . . . . . . . . . . . . . . . . . . . . . . . . Average Slot Usage (%) 90 | . 94 83 79 82 88 96 98 99 94 100 97 91 100 94 93 92 78 77 94 80 90 88 94 90 94 87 84 88 91 65 35 41 Engine 2 | . 13 8 . 11 9 5 3 9 4 . . . . . 5 3 . . . . 1 . . . . . . . . . . . Core 8 | . . . 2 11 12 11 13 9 11 18 18 14 15 13 6 6 11 11 11 7 4 5 5 7 14 5 1 . . . 4 4 Reactor 1 | . . . . . . . . . . . . . . . . . . . . . 2 3 5 1 . 7 10 13 13 9 . . Treads 12 | . 16 11 11 11 11 21 27 26 26 27 23 2 . . 9 12 11 10 5 . . 12 5 5 9 9 8 8 8 5 . . Wheel 8 | . 11 10 11 11 11 5 . . . . 3 23 30 26 12 7 1 . 5 5 18 . 9 10 9 4 5 8 8 5 . . Device 10 | . 9 9 11 11 11 13 7 6 11 9 16 3 . . 1 9 5 1 11 11 23 22 21 22 23 22 16 17 21 13 4 4 Storage 7 | . 14 11 11 11 11 9 9 9 9 9 9 7 7 6 6 5 5 5 5 5 4 5 5 5 4 4 4 4 4 3 . . Hackware 12 | . . . . . . . 1 2 . 8 1 15 23 27 25 24 17 14 11 11 13 15 21 21 19 17 21 21 21 15 8 8 Protection 3 | . . 1 . . . 3 9 9 5 . . . . . 3 2 6 10 11 7 2 5 5 1 . . . 1 . . . . Energy Gun 4 | . . 14 22 . . 5 6 . 6 13 5 2 . . 1 5 4 1 5 9 3 3 . 1 . . . 1 4 2 . 5 Energy Cannon 2 | . . . . . . 5 3 1 5 9 1 . 5 5 4 1 5 4 . . 2 3 . . . . . 4 4 . . . Ballistic Gun 6 | . 28 16 11 5 . 10 11 16 9 . 4 15 1 . 4 2 3 1 . . 3 2 5 1 . . . . . 1 . . Ballistic Cannon 1 | . . . . . . 1 5 . . . . . . . . 2 . 2 . . . 2 5 4 2 . . . . . . . Launcher 2 | . . . . . 20 1 . 9 4 . 12 1 9 9 2 . . . . . . . . . . 2 4 2 . . . . Special Weapon 1 | . . . . . . . . . . 4 1 . 2 3 . 1 . 3 5 . . 1 5 3 4 3 4 1 4 . . . Naked Turns . | . . . . . . . . . . . . . . . . . . . . . . . . . . . . . . . . . Heaviest Build 188 | 8 29 36 54 64 66 120 120 108 119 115 123 123 115 117 126 126 157 149 127 129 152 157 136 136 125 173 173 184 167 188 12 18 Greatest Support 155 | 32 40 23 23 16 16 71 68 63 63 60 60 42 42 42 80 90 76 76 25 25 61 155 126 32 32 150 150 32 32 32 24 40 Greatest Overweight (x) 46 | 1 1 2 3 3 4 2 1 1 2 1 12 12 2 2 12 12 42 5 5 5 4 4 4 4 3 3 5 5 5 46 . . Average Overweight (x) 2 | . . 1 1 3 3 1 1 1 1 1 5 3 2 2 5 2 2 2 5 4 2 . 3 3 3 1 3 5 5 2 . . Largest Inventory Capacity 25 | 8 15 15 20 20 20 25 25 25 25 25 25 25 25 25 25 25 25 25 25 25 25 25 25 25 25 25 25 25 25 25 5 5 Average Capacity 23 | 7 12 15 16 20 20 21 25 25 25 25 25 25 25 25 25 25 25 25 25 25 24 25 25 25 25 25 25 25 25 20 5 5 Most Carried 25 | 5 10 15 20 20 20 25 25 25 25 25 25 25 25 25 25 25 24 24 23 23 25 25 25 25 24 25 24 25 25 25 5 5 Average Carried 21 | 3 8 13 16 20 16 20 24 24 23 24 24 20 21 22 24 23 22 22 23 22 22 23 23 24 22 23 19 21 25 18 5 4 Final Capacity 25 | 8 15 15 20 20 20 25 25 25 25 25 25 25 25 25 25 25 25 25 25 25 25 25 25 25 25 25 25 25 25 5 5 5 Final Carried 25 | 5 10 15 20 20 18 25 25 25 24 24 25 14 25 20 25 24 24 23 23 22 24 25 24 24 22 24 18 25 25 5 5 3 Class Distribution -------------------- 27% | Botlord-Mutant 16% | Scavenger-Mutant 14% | Bothacker-Mutant 10% | Scavenger-Skirmisher 9% | Mutant 3% | Commander-Mutant Dominant Class ---------------- Mutant | -10/Materials Gunner | -9/Materials Scavenger-Gunner | -9/Mines Mutant | -9/Exiles Mutant | -8/Mines Scavenger-Skirmisher | -8/Materials Scavenger-Mutant | -8/Garrison Scavenger-Mutant | -8/Materials Scavenger-Mutant | -8/Garrison Scavenger-Mutant | -8/Materials Mutant | -8/Garrison Commander-Mutant | -7/Factory Bothacker-Mutant | -7/Garrison Bothacker-Mutant | -6/Factory Botlord-Mutant | -6/Garrison Botlord-Mutant | -5/Factory Botlord-Mutant | -5/Upper Caves Botlord-Mutant | -5/Upper Caves Bothacker-Mutant | -5/Warlord Bothacker-Mutant | -4/Proximity Caves Bothacker-Mutant | -4/Factory Bothacker-Mutant | -4/Garrison Botlord-Mutant | -4/Factory Botlord-Mutant | -4/Garrison Botlord-Mutant | -3/Research Botlord-Mutant | -3/Garrison Botlord-Mutant | -2/Research Botlord-Mutant | -2/Garrison Botlord-Mutant | -2/Research Botlord-Mutant | -2/Garrison Scavenger-Sprinter | -2/Research Scavenger-Sprinter | -2/Testing Resources | -11 -10 -9 -9 -9 -8 -8 -8 -8 -8 -8 -8 -7 -7 -6 -6 -5 -5 -5 -5 -4 -4 -4 -4 -4 -3 -3 -2 -2 -2 -2 -2 -2 ----------- Run | Jun Mat Mat Min Exi Min Mat Gar Mat Gar Mat Gar Fac Gar Fac Gar Fac Upp Upp War Pro Fac Gar Fac Gar Res Gar Res Gar Res Gar Res Tes Matter Collected 10371 | 243 155 491 90 . 365 669 927 546 871 94 194 526 136 190 359 790 384 490 . 72 300 648 . 691 13 359 139 384 . 245 . . Remotely . | . . . . . . . . . . . . . . . . . . . . . . . . . . . . . . . . . Salvage Created 14453 | . 254 1438 309 . 787 1212 882 679 1134 213 535 208 178 185 183 1136 725 521 . 344 399 1303 . 467 . 621 72 285 . 383 . . Parts 782 | . 11 100 23 . 34 69 51 44 56 12 26 20 10 4 8 88 23 13 . 19 19 57 . 22 . 25 12 11 . 25 . . Haulers Intercepted 8 | . . 4 . . . 3 . . . . . 1 . . . . . . . . . . . . . . . . . . . . Recyclers Shooed 5 | . . . . . 1 . . 2 . . . 1 . 1 . . . . . . . . . . . . . . . . . . Parts Field Recycled . | . . . . . . . . . . . . . . . . . . . . . . . . . . . . . . . . . Retrieved Matter . | . . . . . . . . . . . . . . . . . . . . . . . . . . . . . . . . . Parts Self-Destructed 53 | . . . . . . . . . . . . . . . . . 17 20 . 16 . . . . . . . . . . . . Prevented 9 | . . . . . . . . . . . . . . . . . 6 1 . 2 . . . . . . . . . . . . Kills | -11 -10 -9 -9 -9 -8 -8 -8 -8 -8 -8 -8 -7 -7 -6 -6 -5 -5 -5 -5 -4 -4 -4 -4 -4 -3 -3 -2 -2 -2 -2 -2 -2 ------- Run | Jun Mat Mat Min Exi Min Mat Gar Mat Gar Mat Gar Fac Gar Fac Gar Fac Upp Upp War Pro Fac Gar Fac Gar Res Gar Res Gar Res Gar Res Tes Combat Hostiles Destroyed 271 | . 6 26 7 . 11 16 27 12 30 4 12 3 4 3 4 21 14 7 . 10 6 17 . 12 . 9 . 2 . 8 . . Melee 15 | . . . . . . . . . . 1 . . . . . . . 2 . . 6 1 . 1 . 2 . . . 2 . . Guns 125 | . 6 24 7 . 4 6 20 7 4 1 2 3 . . 3 15 3 . . 10 . 3 . 5 . . . . . 2 . . Cannons 64 | . . . . . . 6 7 . 6 2 . . 2 3 . 6 10 3 . . . 12 . 6 . . . . . 1 . . AOE 52 | . . 2 . . 4 4 . 5 19 . 9 . 1 . . . . . . . . . . . . 4 . 2 . 2 . . Classes Destroyed 17 | . 1 8 1 . 1 1 . . 1 . . 2 2 . . . . . . . . . . . . . . . . . . . Worker 14 | . . 1 . . 4 . . 1 . . . 3 . . . 5 . . . . . . . . . . . . . . . . Builder 18 | . . 2 2 . 1 1 . 3 . . . . . . . 6 . . . . . . . . . . 3 . . . . . Tunneler 2 | . . . . . . . . . . . . 1 . . . 1 . . . . . . . . . . . . . . . . Hauler 8 | . . 4 . . . 3 . . . . . 1 . . . . . . . . . . . . . . . . . . . . Recycler 6 | . . 1 1 . . 2 . 2 . . . . . . . . . . . . . . . . . . . . . . . . Operator 5 | . . 1 . . . 1 . 1 . . . 1 . . . 1 . . . . . . . . . . . . . . . . Watcher 9 | . . 2 . . . . . 2 . 1 1 . . . . 3 . . . . . . . . . . . . . . . . Swarmer 76 | . . 7 4 . . . 8 2 10 . 4 . . . . 10 6 2 . 9 . 3 . 4 . 3 . . . 4 . . Cutter 2 | . . . . . . . . . . . . . 1 . . . . . . . . . . . . . . 1 . . . . Grunt 108 | . 6 10 2 . 8 10 16 4 15 3 7 . . 3 1 . 4 4 . . 3 4 . 3 . 5 . . . . . . Brawler 7 | . . . 1 . 1 . . 1 . . . . 1 . . . 3 . . . . . . . . . . . . . . . Duelist 2 | . . . . . . . . . . . . . 2 . . . . . . . . . . . . . . . . . . . Sentry 33 | . . 9 . . . 2 3 4 3 1 . . . . 2 2 1 1 . 1 . 3 . . . 1 . . . . . . Specialist 4 | . . . . . . . . . 2 . . . . . . 1 . . . . . 1 . . . . . . . . . . Hunter 15 | . . . . . 2 3 . 1 . . 1 . . . . . . . . . . 6 . . . . . 2 . . . . Programmer 25 | . . . . . . . . . . . . 3 . . 1 8 . 1 . . 3 . . 5 . . . . . 4 . . Heavy 2 | . . . . . . 1 . . . . . . . . . . . . . . . . . . . . . 1 . . . . Savage 1 | . . . . . . . . . 1 . . . . . . . . . . . . . . . . . . . . . . . Best Kill Streak 10 | . 2 4 4 . 6 7 4 7 4 3 7 1 2 1 2 10 5 2 . 5 2 3 . 6 . 6 3 1 . 4 . . Combat Bots Only 9 | . 2 4 4 . 3 6 4 3 4 3 6 1 2 1 2 9 5 2 . 5 2 3 . 6 . 6 . 1 . 4 . . Max Kills in Single Turn 4 | . 1 2 2 . 2 2 1 3 4 1 2 1 1 1 1 2 2 1 . 1 1 1 . 1 . 2 3 1 . 2 . . Gunslinging 1 | . . . 1 . . . . . . . . . . . . 1 . . . . . . . . . . . . . . . . Exploded 4 | . . 1 . . 1 2 . 2 4 . 2 . 1 . . . . . . . . . . . . 1 . 1 . 2 . . Melee 1 | . . . . . . . . . . 1 . . . . . . . 1 . . 1 1 . 1 . 1 . . . 1 . . Uniques/NPCs Destroyed . | . . . . . . . . . . . . . . . . . . . . . . . . . . . . . . . . . Combat | -11 -10 -9 -9 -9 -8 -8 -8 -8 -8 -8 -8 -7 -7 -6 -6 -5 -5 -5 -5 -4 -4 -4 -4 -4 -3 -3 -2 -2 -2 -2 -2 -2 -------- Run | Jun Mat Mat Min Exi Min Mat Gar Mat Gar Mat Gar Fac Gar Fac Gar Fac Upp Upp War Pro Fac Gar Fac Gar Res Gar Res Gar Res Gar Res Tes Damage Taken 26099 | . 278 1066 166 . 339 831 1194 438 1366 271 313 326 93 228 927 1748 1063 1166 151 660 808 5049 201 1109 139 694 26 842 272 4260 . 75 Core 3588 | . 80 123 29 . 35 . 146 . 136 46 31 48 37 32 99 241 94 55 . 106 70 517 62 71 . 51 . 90 46 1268 . 75 Absorbed by Shields 2015 | . . . . . . . 79 . . . 113 . 16 . 122 . . . . . 263 208 . 497 . 143 . . . 574 . . Reduced by Siege Mode 49 | . . . . . . . . . . . . . . . . . . . . . . 49 . . . . . . . . . . Redirected to Shielding 49 | . . . . . . . . . . . . . . . . . . . . . . 49 . . . . . . . . . . Regen/Repaired (Parts) 891 | . . . . . . 4 . . . . . 157 . 37 . 134 . . . . 559 . . . . . . . . . . . Core Remaining (%) 67 | 100 68 . . . 53 . . . . . 34 . 87 . 84 . . . . 50 . . . 37 . 96 . . . . . . Volleys Fired 997 | . 22 78 19 . 16 59 94 36 82 15 24 25 13 20 36 100 37 34 . 27 11 74 7 78 3 10 9 34 11 23 . . Largest 3 | . 2 3 3 . 2 3 3 3 3 3 2 3 2 2 3 3 3 3 . 2 3 3 1 2 1 1 1 3 1 3 . . Hottest 328 | . 40 113 103 . 72 146 151 92 156 219 156 119 81 162 172 243 208 198 . 175 210 328 65 182 5 80 7 243 120 195 . . Shots Fired 1928 | . 44 210 56 . 60 154 206 77 146 25 37 47 17 23 49 192 76 46 . 45 24 146 7 118 3 10 10 46 13 41 . . Gun 1126 | . 44 210 56 . 29 92 127 48 87 8 13 34 . . 19 128 32 11 . 44 22 47 . 39 . . . 6 . 30 . . Cannon 538 | . . . . . . 52 79 7 31 16 2 2 8 11 9 61 44 15 . . . 82 7 74 . . . 15 13 10 . . Launcher 163 | . . . . . 31 10 . 22 28 . 19 6 8 3 11 . . . . . . . . . . 7 1 16 . 1 . . Special 101 | . . . . . . . . . . 1 3 5 1 9 10 3 . 20 . 1 2 17 . 5 3 3 9 9 . . . . Kinetic 813 | . 44 136 19 . 29 75 134 48 67 . 1 25 . . 6 63 26 15 . . 9 16 7 79 . . . . . 14 . . Thermal 679 | . . 40 37 . . 54 72 7 51 24 14 9 . . 13 95 30 8 . 35 13 101 . 34 . . . 7 13 22 . . Explosive 25 | . . . . . . . . 13 12 . . . . . . . . . . . . . . . . . . . . . . . Electromagnetic 310 | . . 34 . . 31 25 . 9 16 . 19 8 16 14 20 31 20 3 . 9 . 12 . . . 7 1 30 . 5 . . Robot Hit Streak 19 | . 9 19 18 . 18 13 15 11 13 6 10 6 7 6 9 11 9 8 . 6 9 13 . 10 2 3 6 15 6 8 . . Robot Miss Streak 10 | . 3 6 3 . 3 3 10 7 3 2 5 5 1 4 3 8 5 4 . 3 2 5 . 7 1 6 4 5 . 2 . . Penetration Max 2 | . . . . . . 1 1 . . . . . . . . . 1 . . . 2 . . . . . . . . . . . Secondary Targets 11 | . 1 2 3 . . . 1 1 . . . . . . . 2 . . . 1 . . . . . . . . . . . . Max Gunslinging Chain 1 | . 1 1 1 . . . 1 1 . . . . . . . 1 . . . 1 . . . . . . . . . . . . Autonomous 30 | . . . . . 30 . . . . . . . . . . . . . . . . . . . . . . . . . . . Shots Hit Robots 1207 | . 33 147 36 . 35 102 98 40 54 10 19 37 5 12 56 118 41 42 . 25 37 109 . 64 2 15 8 25 1 36 . . Core Hits 639 | . 13 70 13 . 24 45 42 40 57 8 18 21 8 5 24 64 23 9 . 12 14 40 . 20 . 31 5 17 1 15 . . Critical Kills 6 | . . 1 . . . . . 1 . . . . . . . . 2 . . . . 1 . . . . . . . 1 . . Critical Parts Destroyed 10 | . . . . . 1 . 2 . . . . . . . . . 1 3 . . 3 . . . . . . . . . . . Critical Strikes 45 | . . 1 . . 1 1 9 1 1 1 . . . . . 6 4 7 . . 6 2 . 4 . . . . . 1 . . Burn 10 | . . . . . . 1 2 . 1 1 . . . . . 3 . . . . 1 1 . . . . . . . . . . Meltdown 2 | . . . . . . . . . . . . . . . . . . . . . . 1 . . . . . . . 1 . . Destroy 13 | . . 1 . . 1 . 2 1 . . . . . . . . 3 2 . . 3 . . . . . . . . . . . Blast 13 | . . . . . . . 5 . . . . . . . . 2 1 2 . . . . . 3 . . . . . . . . Corrupt 1 | . . . . . . . . . . . . . . . . 1 . . . . . . . . . . . . . . . . Smash 3 | . . . . . . . . . . . . . . . . . . 3 . . . . . . . . . . . . . . Sever 3 | . . . . . . . . . . . . . . . . . . . . . 2 . . 1 . . . . . . . . Melee Attacks 190 | . . 4 . . . . . . . . . 1 . . 23 9 . 14 . . 34 17 . 11 4 50 10 . . 13 . . Impact 17 | . . . . . . . . . . . . . . . . 4 . 13 . . . . . . . . . . . . . . Slashing 64 | . . . . . . . . . . . . . . . . . . 1 . . 34 17 . 11 1 . . . . . . . Piercing 76 | . . . . . . . . . . . . . . . . . . . . . . . . . 3 50 10 . . 13 . . Sneak Attacks 36 | . . 4 . . . . . . . . . 1 . . 18 5 . 4 . . . . . 1 . 3 . . . . . . Combat Hostiles 12 | . . . . . . . . . . . . . . . 5 . . 3 . . . . . 1 . 3 . . . . . . Follow-up Attacks . | . . . . . . . . . . . . . . . . . . . . . . . . . . . . . . . . . Damage Inflicted 32350 | . 325 1863 448 . 1715 2103 1985 1541 2343 231 905 726 238 206 895 3066 1151 1074 . 619 1011 3727 . 2358 . 1134 154 1001 42 1489 . . Guns 13296 | . 325 1786 448 . 790 967 1190 531 657 81 179 552 . . 330 1980 313 52 . 619 321 901 . 736 . . . 31 . 507 . . Cannons 8430 | . . . . . . 787 795 82 313 150 50 37 49 126 176 1022 838 360 . . . 1744 . 1375 . . . 115 42 369 . . Explosions 7090 | . . 77 . . 925 349 . 928 1373 . 654 136 189 80 389 64 . . . . . . . . . 748 154 855 . 169 . . Melee 3511 | . . . . . . . . . . . . . . . . . . 662 . . 690 1082 . 247 . 386 . . . 444 . . Ramming 23 | . . . . . . . . . . . 22 1 . . . . . . . . . . . . . . . . . . . . Kinetic 9839 | . 325 1022 195 . 790 839 1352 531 575 . 5 401 . . 137 1051 256 285 . . 74 283 . 1447 . . . . . 271 . . Thermal 10094 | . . 412 253 . 88 777 633 82 395 231 230 151 . . 193 1469 657 99 . 490 247 2183 . 664 . . . 162 42 636 . . Explosive 1614 | . . . . . . . . 701 913 . . . . . . . . . . . . . . . . . . . . . . . Electromagnetic 7269 | . . 429 . . 837 487 . 227 460 . 648 173 238 206 565 546 238 28 . 129 . 179 . . . 748 154 839 . 138 . . Impact 596 | . . . . . . . . . . . . . . . . . . 596 . . . . . . . . . . . . . . Slashing 2085 | . . . . . . . . . . . . . . . . . . 66 . . 690 1082 . 247 . . . . . . . . Piercing 830 | . . . . . . . . . . . . . . . . . . . . . . . . . . 386 . . . 444 . . Highest Corruption 57 | . . 1 11 11 11 11 11 15 26 26 26 1 1 . . 16 29 56 57 . 5 3 . 12 . 3 1 10 10 41 41 41 Average Corruption 13 | . . 1 2 11 11 7 11 13 18 26 26 1 1 . . 12 24 32 56 . 3 1 . 10 . 3 1 4 10 22 41 41 Corruption Purged 5 | . . . . . . . . . . . . . . . . . . . . . 2 3 . . . . . . . . . . Corruption Blocked . | . . . . . . . . . . . . . . . . . . . . . . . . . . . . . . . . . Effects 675 | . . . 6 12 39 6 97 35 125 30 35 13 5 . . 60 40 63 2 . 5 . . 28 . 6 1 19 9 27 3 9 Message Errors 164 | . . . 3 2 11 . 25 8 29 7 12 2 1 . . 14 10 14 2 . . . . 7 . 2 . 6 2 4 1 2 Matter Fused 158 | . . . 1 1 11 3 20 8 33 6 5 5 2 . . 11 11 19 . . 1 . . 8 . 1 . 6 2 2 1 1 Heat Flow Errors 92 | . . . . 6 7 . 12 5 12 5 5 . 1 . . 10 4 11 . . 2 . . 3 . 2 . 1 2 2 . 2 Energy Discharges 65 | . . . . . 2 1 8 3 15 2 2 3 1 . . 5 2 9 . . 2 . . 3 . 1 . 3 . 3 . . Parts Rejected 6 | . . . . . . . 1 . . 1 2 . . . . 1 . . . . . . . . . . . . . 1 . . Parts Fused 9 | . . . . . . . 3 . 2 . . . . . . . 1 1 . . . . . . . . . . . 2 . . Data Loss (minor) 67 | . . . . 1 3 1 11 5 15 4 3 . . . . 5 2 4 . . . . . 2 . . . 2 . 8 . 1 Data Loss (major) 33 | . . . 1 1 2 . 4 2 4 3 1 1 . . . 4 3 3 . . . . . 3 . . . . . 1 . . Misfires 30 | . . . . . 1 1 4 1 9 2 2 1 . . . 3 1 2 . . . . . . . . 1 . 2 . . . Alerts 19 | . . . . 1 1 . 3 2 3 . 1 1 . . . 3 . . . . . . . 1 . . . 1 1 1 . . Misdirections 11 | . . . . . . . 1 . . . 2 . . . . 2 . . . . . . . . . . . . . 2 1 3 Weapon Failures 21 | . . . 1 . 1 . 5 1 3 . . . . . . 2 6 . . . . . . 1 . . . . . 1 . . Overload Shots . | . . . . . . . . . . . . . . . . . . . . . . . . . . . . . . . . . Overflow Damage 1035 | . . 18 . . 21 13 . 68 22 . 29 10 . . . 30 23 303 . . 11 179 . 222 . . . . . 86 . . Projectiles 410 | . . . . . . 13 . . . . . . . . . 30 23 39 . . . 33 . 222 . . . . . 50 . . Explosions 178 | . . 18 . . 21 . . 68 22 . 29 10 . . . . . . . . . . . . . . . . . 10 . . Melee 447 | . . . . . . . . . . . . . . . . . . 264 . . 11 146 . . . . . . . 26 . . Knockbacks 32 | . . . . . . 2 8 . . . . . . . . 5 4 5 . . . . . 8 . . . . . . . . Impact 3 | . . . . . . . . . . . . . . . . . . 3 . . . . . . . . . . . . . . Kinetic 29 | . . . . . . 2 8 . . . . . . . . 5 4 2 . . . . . 8 . . . . . . . . Secondary . | . . . . . . . . . . . . . . . . . . . . . . . . . . . . . . . . . Self-Inflicted Damage 822 | . . 66 . . 69 93 . 26 157 . 10 11 5 53 10 17 . . . . . . . 31 . 145 26 73 . 30 . . Shots 67 | . . 2 . . 4 9 . 3 8 . 1 2 1 3 1 1 . . . . . . . 1 . 15 2 10 . 4 . . Rammed 5 | . . . . . . . . . . . 4 1 . . . . . . . . . . . . . . . . . . . . Targets Rammed 6 | . . . . . . . . . . 1 4 1 . . . . . . . . . . . . . . . . . . . . Kicked . | . . . . . . . . . . . . . . . . . . . . . . . . . . . . . . . . . Crushed 1 | . . . . . . . . . . 1 . . . . . . . . . . . . . . . . . . . . . . Highest Temperature 561 | . 18 23 2 257 267 338 404 381 396 561 334 120 122 188 330 380 426 472 285 240 189 372 . 195 . 166 . 185 179 322 . 241 Average Temperature 113 | . 10 6 2 110 90 83 108 151 90 150 139 42 29 63 114 130 112 177 135 75 62 118 . 64 . 89 . 42 77 136 . 114 Received Heat Transfer 4046 | . 153 402 42 . 135 270 627 144 522 99 132 . . 45 207 9 135 306 . 45 128 368 . 97 . 45 . 99 36 . . . Effects 49 | . . . . . . 1 6 3 . 13 3 . . . . 4 5 12 . 1 . 1 . . . . . . . . . . Shutdowns 16 | . . . . . . . 1 2 . 2 . . . . . 1 2 7 . . . 1 . . . . . . . . . . Energy Bleed 6 | . . . . . . 1 . 1 . . . . . . . . 2 1 . 1 . . . . . . . . . . . . Interference 11 | . . . . . . . 5 . . . 3 . . . . 2 . 1 . . . . . . . . . . . . . . Matter Decay 2 | . . . . . . . . . . . . . . . . 1 . 1 . . . . . . . . . . . . . . Short Circuit 1 | . . . . . . . . . . . . . . . . . . 1 . . . . . . . . . . . . . . Damage (minor) 5 | . . . . . . . . . . 3 . . . . . . 1 1 . . . . . . . . . . . . . . Damage (major) 8 | . . . . . . . . . . 8 . . . . . . . . . . . . . . . . . . . . . . Siege Activations 1 | . . . . . . . . . . . . . . . . . . . . . . 1 . . . . . . . . . . Total Turns 19 | . . . . . . . . . . . . . . . . . . . . . . 19 . . . . . . . . . . Longest Duration 19 | . . . . . . . . . . . . . . . . . . . . . . 19 . . . . . . . . . . Robots Corrupted 13 | . . . . . 3 . . . 1 . 1 . 1 . 1 1 1 . . . . . . . . 3 . 1 . . . . Combat Hostiles 11 | . . . . . 3 . . . 1 . 1 . 1 . 1 . 1 . . . . . . . . 3 . . . . . . Parts Fried 44 | . . 1 . . 4 . . . 2 . 7 4 . . . 4 . 1 . 1 . . . . . 14 . 6 . . . . Impact Corruptions 7 | . . . . . . . . . . . . . . . . . . 7 . . . . . . . . . . . . . . Robots Melted 2 | . . . . . . . . . . . . . . . . . . . . . . 1 . . . . . . . 1 . . Combat Hostiles 2 | . . . . . . . . . . . . . . . . . . . . . . 1 . . . . . . . 1 . . Parts Melted 16 | . . 1 . . . . . . . . . . . 1 . 6 1 . . . . 4 . 1 . . . . . 2 . . Heat Transferred 14618 | . . 868 575 . 150 1493 1326 148 814 444 457 296 . . 233 2405 703 150 . 666 444 2121 . 657 . . . 100 37 531 . . Parts Sabotaged . | . . . . . . . . . . . . . . . . . . . . . . . . . . . . . . . . . Parts Stolen . | . . . . . . . . . . . . . . . . . . . . . . . . . . . . . . . . . Parts Stripped . | . . . . . . . . . . . . . . . . . . . . . . . . . . . . . . . . . Power Chain Reactions 12 | . . 3 . . 3 1 . . . . 1 . . . . 1 . . . . . . . . . . . 2 . 1 . . Missiles Intercepted . | . . . . . . . . . . . . . . . . . . . . . . . . . . . . . . . . . Alert | -11 -10 -9 -9 -9 -8 -8 -8 -8 -8 -8 -8 -7 -7 -6 -6 -5 -5 -5 -5 -4 -4 -4 -4 -4 -3 -3 -2 -2 -2 -2 -2 -2 ------- Run | Jun Mat Mat Min Exi Min Mat Gar Mat Gar Mat Gar Fac Gar Fac Gar Fac Upp Upp War Pro Fac Gar Fac Gar Res Gar Res Gar Res Gar Res Tes Peak Influence 2288 | . 296 335 308 . 383 184 1514 1185 2288 1116 973 543 1345 764 1234 629 . . . . 78 857 462 683 384 438 390 575 324 360 96 1648 Initial 1115 | . . 40 118 . . 14 119 737 577 1115 614 510 380 705 407 609 . . . . . . 449 238 384 256 246 292 323 234 84 54 Average 562 | . 127 208 184 . 181 61 737 968 1509 979 784 283 1012 666 880 235 . . . . 21 494 430 471 374 358 285 431 317 267 93 1616 Maximum Alert Level 5 | . 1 1 1 . 1 . 4 4 5 4 3 2 4 3 4 2 . . . . . 3 2 2 1 2 1 2 1 1 . 5 Low Security (%) 26 | 100 80 47 56 . 73 100 12 . . . . 30 . . . 60 . . . . 100 14 . . . . 13 . . 21 100 . Level 1 23 | . 19 52 43 . 26 . 16 . . . . 50 2 . . 24 . . . . . 14 17 37 100 59 86 36 100 78 . . Level 2 21 | . . . . . . . 19 . 5 . 34 19 16 79 23 15 . . . . . 55 82 62 . 40 . 63 . . . . Level 3 16 | . . . . . . . 27 93 9 92 65 . 36 20 59 . . . . . . 14 . . . . . . . . . . Level 4 9 | . . . . . . . 24 6 48 7 . . 43 . 17 . . . . . . . . . . . . . . . . . Level 5 3 | . . . . . . . . . 35 . . . . . . . . . . . . . . . . . . . . . . . High Security . | . . . . . . . . . . . . . . . . . . . . . . . . . . . . . . . . . Max Security . | . . . . . . . . . . . . . . . . . . . . . . . . . . . . . . . . 99 Squads Dispatched 53 | . 3 1 . . . 5 . 3 . 1 . 6 . 6 . 6 . 1 . . 4 . 3 . 1 . 2 . 2 . 2 7 Investigation 8 | . 1 . . . . 1 . . . 1 . . . 1 . 1 . . . . 2 . . . . . . . . . 1 . Extermination 11 | . . . . . . . . . . . . 4 . 2 . 3 . . . . 1 . 1 . . . . . . . . . Reinforcement 23 | . 2 1 . . . 2 . 3 . . . 2 . 3 . 2 . . . . 1 . 2 . 1 . 2 . 1 . 1 . Assault 8 | . . . . . . . . . . . . . . . . . . 1 . . . . . . . . . . . . . 7 Garrison 3 | . . . . . . 2 . . . . . . . . . . . . . . . . . . . . . . 1 . . . Intercept . | . . . . . . . . . . . . . . . . . . . . . . . . . . . . . . . . . Searches Triggered . | . . . . . . . . . . . . . . . . . . . . . . . . . . . . . . . . . Construction Impeded 4 | . . . . . . . . 2 . . . . . 1 . . . . . . . . . . . . 1 . . . . . Haulers Reinforced 3 | . . . . . . . . . . . . 1 . 1 . . . . . . . . 1 . . . . . . . . . Active Scanning Responses . | . . . . . . . . . . . . . . . . . . . . . . . . . . . . . . . . . Cargo Convoy Interrupts . | . . . . . . . . . . . . . . . . . . . . . . . . . . . . . . . . . Stealth | -11 -10 -9 -9 -9 -8 -8 -8 -8 -8 -8 -8 -7 -7 -6 -6 -5 -5 -5 -5 -4 -4 -4 -4 -4 -3 -3 -2 -2 -2 -2 -2 -2 --------- Run | Jun Mat Mat Min Exi Min Mat Gar Mat Gar Mat Gar Fac Gar Fac Gar Fac Upp Upp War Pro Fac Gar Fac Gar Res Gar Res Gar Res Gar Res Tes Distress Signals 20 | . 2 . . . 1 3 . 5 . 1 1 1 . . . 1 . . . . . . . . . . 1 . 3 . . 1 Communications Jammed . | . . . . . . . . . . . . . . . . . . . . . . . . . . . . . . . . . Distress Signals . | . . . . . . . . . . . . . . . . . . . . . . . . . . . . . . . . . Times Spotted 502 | . 15 29 7 . 14 24 27 20 26 12 11 11 16 12 35 35 14 22 . 13 11 42 5 17 2 13 10 18 6 13 1 21 Peak Tracking Total 17 | . 4 5 3 . 3 6 4 6 4 7 5 2 4 4 6 5 5 7 . 5 4 17 4 6 2 7 4 4 4 5 1 17 Tactical Retreats 30 | . 2 . . . 1 . 6 2 2 . 2 . 1 . 2 2 . 2 . 2 1 1 . 3 . . . . . . . 1 Traps | -11 -10 -9 -9 -9 -8 -8 -8 -8 -8 -8 -8 -7 -7 -6 -6 -5 -5 -5 -5 -4 -4 -4 -4 -4 -3 -3 -2 -2 -2 -2 -2 -2 ------- Run | Jun Mat Mat Min Exi Min Mat Gar Mat Gar Mat Gar Fac Gar Fac Gar Fac Upp Upp War Pro Fac Gar Fac Gar Res Gar Res Gar Res Gar Res Tes Traps Triggered 58 | . 1 . . . . 1 17 . 7 . 4 1 2 . 8 2 . . 3 . . 3 . . . 2 1 2 . 2 1 1 Indirectly 5 | . . . . . . 1 . . 2 . . . 1 . 1 . . . . . . . . . . . . . . . . . Trap Hack Attempts 36 | . . 7 . . . . . . . . . 14 . . . 15 . . . . . . . . . . . . . . . . Triggered . | . . . . . . . . . . . . . . . . . . . . . . . . . . . . . . . . . Disarmed 1 | . . . . . . . . . . . . 1 . . . . . . . . . . . . . . . . . . . . Reprogrammed 6 | . . 2 . . . . . . . . . 1 . . . 3 . . . . . . . . . . . . . . . . Reused 5 | . . 1 . . . . . . . . . . . . . 1 . . . . . . . . . . . . . 3 . . Traps Extracted . | . . . . . . . . . . . . . . . . . . . . . . . . . . . . . . . . . Installed 3 | . . . . . . . . . . . . . . . . . . . . . . . . . . . . . . 3 . . Triggered 6 | . . 1 . . . . . . . . . . . . . 1 1 . . . . . . . . . . . . 3 . . Most Traps Carried 3 | . . . . . . . . . . . . . . . . . . . . . . . . . . . . . . 3 . . Machines | -11 -10 -9 -9 -9 -8 -8 -8 -8 -8 -8 -8 -7 -7 -6 -6 -5 -5 -5 -5 -4 -4 -4 -4 -4 -3 -3 -2 -2 -2 -2 -2 -2 ---------- Run | Jun Mat Mat Min Exi Min Mat Gar Mat Gar Mat Gar Fac Gar Fac Gar Fac Upp Upp War Pro Fac Gar Fac Gar Res Gar Res Gar Res Gar Res Tes Machines Disabled 59 | . . . . . 1 3 4 . 7 . 4 2 8 2 4 8 . 1 . . . 4 1 5 . 1 . 3 . 1 . . Max in Single Turn 2 | . . . . . 1 2 1 . 2 . 2 . 2 . 1 1 . . . . . 2 . 2 . 1 . . . 1 . . Garrison Access 1 | . . . . . . . . . . . . 1 . . . . . . . . . . . . . . . . . . . . Garrison Relay 22 | . . . . . . . 4 . 3 . 1 . 4 . 2 . . . . . . 2 . 5 . 1 . . . . . . Phase Generator 2 | . . . . . . . . . . . . . . . . . . . . . . 1 . 1 . . . . . . . . Machines Repaired . | . . . . . . . . . . . . . . . . . . . . . . . . . . . . . . . . . Machines Sabotaged . | . . . . . . . . . . . . . . . . . . . . . . . . . . . . . . . . . Overloaded Fab Kills . | . . . . . . . . . . . . . . . . . . . . . . . . . . . . . . . . . Hacking | -11 -10 -9 -9 -9 -8 -8 -8 -8 -8 -8 -8 -7 -7 -6 -6 -5 -5 -5 -5 -4 -4 -4 -4 -4 -3 -3 -2 -2 -2 -2 -2 -2 --------- Run | Jun Mat Mat Min Exi Min Mat Gar Mat Gar Mat Gar Fac Gar Fac Gar Fac Upp Upp War Pro Fac Gar Fac Gar Res Gar Res Gar Res Gar Res Tes Machines Accessed 90 | . 2 7 1 2 . 7 3 2 3 2 2 10 3 4 2 17 . 1 . . 7 1 4 1 1 . 4 2 1 . 1 . Terminals 59 | . 2 6 . . . 4 3 1 3 1 2 7 3 2 2 13 . . . . 2 1 1 1 . . 2 2 . . 1 . Fabricators 5 | . . . . . . . . . . . . 1 . 1 . 1 . . . . 1 . . . . . 1 . . . . . Repair Stations 3 | . . . . . . 1 . . . . . . . . . 1 . . . . 1 . . . . . . . . . . . Recycling Units 1 | . . . . . . . . . . . . . . . . . . . . . 1 . . . . . . . . . . . Scanalyzers 7 | . . 1 . . . 1 . . . . . . . . . 2 . . . . 1 . 2 . . . . . . . . . Garrison Access 11 | . . . . . . 1 . 1 . 1 . 2 . 1 . . . . . . 1 . 1 . 1 . 1 . 1 . . . Total Hacks 237 | . 5 18 1 2 . 18 7 4 4 4 2 43 6 17 4 39 . 1 . . 20 1 13 4 1 . 15 5 1 . 2 . Successful 135 | . 2 8 1 2 . 12 1 2 2 2 1 37 3 14 2 14 . 1 . . 11 1 5 1 1 . 9 2 1 . . . Failed 101 | . 3 10 . . . 6 6 2 2 2 1 5 3 3 2 25 . . . . 9 . 8 3 . . 6 3 . . 2 . Catastrophic 15 | . . 3 . . . . 1 . 1 . 1 . . 1 . 5 . . . . 1 . . 1 . . 1 . . . . . Database Lockouts 1 | . . . . . . . . . . . . 1 . . . . . . . . . . . . . . . . . . . . Manual 80 | . 5 10 . 1 . 8 1 . 1 3 . 8 . 3 . 20 . . . . 9 . 5 1 . . 3 . . . 2 . Terminals 142 | . 5 14 . . . 11 7 2 4 3 2 19 6 5 4 29 . . . . 7 1 5 4 . . 7 5 . . 2 . Fabricators 42 | . . . . . . . . . . . . 20 . 10 . 3 . . . . 2 . . . . . 7 . . . . . Repair Stations 8 | . . . . . . 2 . . . . . . . . . 3 . . . . 3 . . . . . . . . . . . Recycling Units 2 | . . . . . . . . . . . . . . . . . . . . . 2 . . . . . . . . . . . Scanalyzers 23 | . . 4 . . . 4 . . . . . . . . . 4 . . . . 4 . 7 . . . . . . . . . Garrison Access 16 | . . . . . . 1 . 2 . 1 . 4 . 2 . . . . . . 2 . 1 . 1 . 1 . 1 . . . Terminal Hacks 44 | . . 3 1 2 . 4 1 1 2 1 1 10 3 1 2 6 . 1 . . . 1 1 1 . . . 2 . . . . Record 1 | . . . . 1 . . . . . . . . . . . . . . . . . . . . . . . . . . . . Part Schematic 5 | . . . . . . . . . . . . 4 . . . 1 . . . . . . . . . . . . . . . . Robot Schematic 3 | . . 1 . . . . . . . . . 2 . . . . . . . . . . . . . . . . . . . . Robot Analysis 1 | . . . . . . . . . . . . 1 . . . . . . . . . . . . . . . . . . . . Open Door 5 | . . . 1 . . . 1 . . . . . . . 1 . . 1 . . . . . . . . . 1 . . . . Open DSF 2 | . . . . . . . . . . . . 1 . . . 1 . . . . . . . . . . . . . . . . Emergency Access Points 6 | . . . . . . . . . 1 . 1 . 1 . . . . . . . . 1 . 1 . . . 1 . . . . Terminal Index 4 | . . . . . . 1 . . . . . 1 . . . 1 . . . . . . 1 . . . . . . . . . Garrison Index 1 | . . . . . . . . . . . . 1 . . . . . . . . . . . . . . . . . . . . Alert Level 3 | . . 1 . . . 1 . 1 . . . . . . . . . . . . . . . . . . . . . . . . Unreport Threat 5 | . . 1 . . . 1 . . . 1 . . . . . 2 . . . . . . . . . . . . . . . . Recall Investigation 1 | . . . . . . . . . . . . . . . . 1 . . . . . . . . . . . . . . . . Recall Reinforcements 1 | . . . . . . . . . . . . . . 1 . . . . . . . . . . . . . . . . . . Zone Layout 1 | . . . . . . 1 . . . . . . . . . . . . . . . . . . . . . . . . . . Patrol Navigation 3 | . . . . . . . . . 1 . . . 1 . 1 . . . . . . . . . . . . . . . . . Security Stations 1 | . . . . . . . . . . . . . 1 . . . . . . . . . . . . . . . . . . . EX-Prototype ID Bank 1 | . . . . 1 . . . . . . . . . . . . . . . . . . . . . . . . . . . . Fabricator Hacks 40 | . . . . . . . . . . . . 20 . 10 . 1 . . . . 2 . . . . . 7 . . . . . Load Schematic 19 | . . . . . . . . . . . . 10 . 5 . . . . . . 1 . . . . . 3 . . . . . Build 21 | . . . . . . . . . . . . 10 . 5 . 1 . . . . 1 . . . . . 4 . . . . . Repair Station Hacks 6 | . . . . . . 2 . . . . . . . . . 2 . . . . 2 . . . . . . . . . . . Scan Component 3 | . . . . . . 1 . . . . . . . . . 1 . . . . 1 . . . . . . . . . . . Repair 3 | . . . . . . 1 . . . . . . . . . 1 . . . . 1 . . . . . . . . . . . Recycling Unit Hacks . | . . . . . . . . . . . . . . . . . . . . . . . . . . . . . . . . . Scanalyzer 15 | . . 4 . . . 4 . . . . . . . . . 2 . . . . 3 . 2 . . . . . . . . . Insert Component 8 | . . 2 . . . 2 . . . . . . . . . 1 . . . . 2 . 1 . . . . . . . . . Analyze 7 | . . 2 . . . 2 . . . . . . . . . 1 . . . . 1 . 1 . . . . . . . . . Garrison Access Hacks 15 | . . . . . . 1 . 1 . 1 . 4 . 2 . . . . . . 2 . 1 . 1 . 1 . 1 . . . Unlock Access 10 | . . . . . . 1 . 1 . 1 . 1 . 1 . . . . . . 1 . 1 . 1 . 1 . 1 . . . Seal Access 1 | . . . . . . . . . . . . 1 . . . . . . . . . . . . . . . . . . . . Coupler Status 4 | . . . . . . . . . . . . 2 . 1 . . . . . . 1 . . . . . . . . . . . Unauthorized Hacks 15 | . 2 1 . . . 1 . . . . . 3 . 1 . 3 . . . . 2 . 1 . . . 1 . . . . . Terminals 14 | . 2 1 . . . 1 . . . . . 3 . 1 . 3 . . . . 1 . 1 . . . 1 . . . . . Botnet 14 | . 2 1 . . . 1 . . . . . 3 . 1 . 3 . . . . 1 . 1 . . . 1 . . . . . Fabricators . | . . . . . . . . . . . . . . . . . . . . . . . . . . . . . . . . . Repair Stations . | . . . . . . . . . . . . . . . . . . . . . . . . . . . . . . . . . Recycling Units 1 | . . . . . . . . . . . . . . . . . . . . . 1 . . . . . . . . . . . Mask 1 | . . . . . . . . . . . . . . . . . . . . . 1 . . . . . . . . . . . Scanalyzers . | . . . . . . . . . . . . . . . . . . . . . . . . . . . . . . . . . Garrison Access . | . . . . . . . . . . . . . . . . . . . . . . . . . . . . . . . . . Data Cores Recovered 3 | . . . . . . . . 1 . . . 1 . . . 1 . . . . . . . . . . . . . . . . Used 1 | . . . . . . . . . . . . . . . . 1 . . . . . . . . . . . . . . . . Hacking Detections 69 | . 2 7 . . . 5 3 2 2 1 2 7 1 3 1 17 . . . . 4 1 4 1 1 . 2 1 1 . 1 . Full Trace Events 10 | . . 1 . . . 3 1 . . 1 . . . . . 1 . . . . 2 . . . . . . 1 . . . . Feedback Events 3 | . . 1 . . . . . . . . . . . . . . . . . . 2 . . . . . . . . . . . Corruption 1 | . . 1 . . . . . . . . . . . . . . . . . . . . . . . . . . . . . . Hackware Fried 2 | . . . . . . . . . . . . . . . . . . . . . 2 . . . . . . . . . . . Feedback Blocked . | . . . . . . . . . . . . . . . . . . . . . . . . . . . . . . . . . Robot Schematics Acquired 3 | . . 1 . . . . . . . . . 2 . . . . . . . . . . . . . . . . . . . . Robots Built 37 | . . . . . . . . . . . . 19 . 9 . . . . . . . . . . . . 9 . . . . . Authchips 19 | . . . . . . . . . . . . 10 . 5 . . . . . . . . . . . . 4 . . . . . Time 1245 | . . . . . . . . . . . . 643 . 308 . . . . . . . . . . . . 294 . . . . . Total Robot Build Rating 151 | . . . . . . . . . . . . 73 . 33 . . . . . . . . . . . . 45 . . . . . Part Schematics Acquired 11 | . . 2 . . . 1 . . . . . 4 . . . 2 . . . . 1 . 1 . . . . . . . . . Parts Built 3 | . . . . . . . . . . . . . . . . 2 . . . . 1 . . . . . . . . . . . Authchips . | . . . . . . . . . . . . . . . . . . . . . . . . . . . . . . . . . Time 175 | . . . . . . . . . . . . . . . . 69 . . . . 106 . . . . . . . . . . . Total Part Build Rating 24 | . . . . . . . . . . . . . . . . 18 . . . . 6 . . . . . . . . . . . Parts Repaired 3 | . . . . . . 1 . . . . . . . . . 1 . . . . 1 . . . . . . . . . . . Time 113 | . . . . . . 61 . . . . . . . . . 26 . . . . 26 . . . . . . . . . . . Parts Recycled . | . . . . . . . . . . . . . . . . . . . . . . . . . . . . . . . . . Recycled Matter . | . . . . . . . . . . . . . . . . . . . . . . . . . . . . . . . . . Retrieved Matter . | . . . . . . . . . . . . . . . . . . . . . . . . . . . . . . . . . Retrieved Components . | . . . . . . . . . . . . . . . . . . . . . . . . . . . . . . . . . Parts Scanalyzed 7 | . . 2 . . . 2 . . . . . . . . . 1 . . . . 1 . 1 . . . . . . . . . Part Schematics Acquired 6 | . . 2 . . . 1 . . . . . . . . . 1 . . . . 1 . 1 . . . . . . . . . Parts Damaged 1 | . . . . . . 1 . . . . . . . . . . . . . . . . . . . . . . . . . . Bothacking | -11 -10 -9 -9 -9 -8 -8 -8 -8 -8 -8 -8 -7 -7 -6 -6 -5 -5 -5 -5 -4 -4 -4 -4 -4 -3 -3 -2 -2 -2 -2 -2 -2 ------------ Run | Jun Mat Mat Min Exi Min Mat Gar Mat Gar Mat Gar Fac Gar Fac Gar Fac Upp Upp War Pro Fac Gar Fac Gar Res Gar Res Gar Res Gar Res Tes Used RIF Installer 7 | . . . . . . . . . 1 . 1 . 1 . 2 . . . . . . 1 . . . 1 . . . . . . Hotswap 1 | . . . . . . . . . . . . . . . 1 . . . . . . . . . . . . . . . . . Threat Obfuscator 1 | . . . . . . . . . . . . . . . 1 . . . . . . . . . . . . . . . . . Zone Cloak 2 | . . . . . . . . . . . . . 1 . . . . . . . . . . . . 1 . . . . . . Robot Detection 1 | . . . . . . . . . . . . . . . . . . . . . . 1 . . . . . . . . . . Structural Interface 1 | . . . . . . . . . . . 1 . . . . . . . . . . . . . . . . . . . . . Robots Hacked 59 | . . 1 . . . . . . . 1 2 3 1 4 9 4 . 9 . 1 2 7 . 2 1 2 5 5 . . . . Non-combat 15 | . . 1 . . . . . . . . . 3 . 4 . 3 . 1 . . . . . . . . 3 . . . . . Combat 43 | . . . . . . . . . . 1 2 . 1 . 9 1 . 8 . 1 2 6 . 2 1 2 2 5 . . . . Robot Hacks Applied 71 | . . 2 . . . . . . . 1 2 4 1 5 11 6 . 10 . 1 2 8 . 2 1 3 7 5 . . . . parse_system 5 | . . 1 . . . . . . . . . . 1 . . . . 1 . . . 1 . . . . 1 . . . . . no_distress 2 | . . 1 . . . . . . . . . . . . . . . . . . . . . . . . 1 . . . . . start_evac 1 | . . . . . . . . . . . . . . . . . . . . . . . . . . . 1 . . . . . find_chute 1 | . . . . . . . . . . . . . . . . 1 . . . . . . . . . . . . . . . . ignore_repairs 1 | . . . . . . . . . . . . . . . . . . . . . . . . . . . 1 . . . . . randomize_corridors 1 | . . . . . . . . . . . . . . . . . . . . . . . . . . . 1 . . . . . map_earth 1 | . . . . . . . . . . . . . . . . . . . . . . . . . . . 1 . . . . . find_fabricator 1 | . . . . . . . . . . . . 1 . . . . . . . . . . . . . . . . . . . . drop_inventory 1 | . . . . . . . . . . . . . . 1 . . . . . . . . . . . . . . . . . . purge_threat 3 | . . . . . . . . . . . . 1 . 1 . 1 . . . . . . . . . . . . . . . . summon_haulers 1 | . . . . . . . . . . . . . . . . 1 . . . . . . . . . . . . . . . . link_fov 1 | . . . . . . . . . . . . . . 1 . . . . . . . . . . . . . . . . . . scatter_targeting 2 | . . . . . . . . . . . . . . . 2 . . . . . . . . . . . . . . . . . spike_heat 1 | . . . . . . . . . . . . . . . 1 . . . . . . . . . . . . . . . . . overload_power 1 | . . . . . . . . . . . . . . 1 . . . . . . . . . . . . . . . . . . disable_weapons 2 | . . . . . . . . . . . . . . . 2 . . . . . . . . . . . . . . . . . reboot_system 3 | . . . . . . . . . . 1 . . . . . . . . . . . . . . . 2 . . . . . . go_dormant 3 | . . . . . . . . . . . . . . . . . . 2 . . 1 . . . . . . . . . . . overwrite_iff 19 | . . . . . . . . . . . 2 . . . 2 . . 6 . 1 1 6 . 1 . . . . . . . . streamctrl_high 2 | . . . . . . . . . . . . . . . . . . . . . . 1 . . . . . 1 . . . . formatsys_low 5 | . . . . . . . . . . . . 2 . 1 . 2 . . . . . . . . . . . . . . . . formatsys_high 14 | . . . . . . . . . . . . . . . 4 1 . 1 . . . . . 1 1 1 1 4 . . . . Manual 2 | . . . . . . . . . . . . . . . . . . . . . . 1 . . . . 1 . . . . . Relay Couplers Released 88 | . . . . . . . 16 . 13 . 4 . 16 . 9 . . . . . . 9 . 18 . 3 . . . . . . Machine Destruction 88 | . . . . . . . 16 . 13 . 4 . 16 . 9 . . . . . . 9 . 18 . 3 . . . . . . Attached 20 | . . . . . . . . . . 1 . 2 1 2 4 1 . . . . 1 5 . 1 . . 2 . . . . . Fabnet Peak Effective % . | . . . . . . . . . . . . . . . . . . . . . . . . . . . . . . . . . Robots Rewired 14 | . . . . . . 1 . . . . . . . . 7 . 1 2 . . . 1 . 1 . . . 1 . . . . Allies Hacked 9 | . . . . . . . . . . . . 3 1 1 . . . 2 . . . . . . . . 2 . . . . . Hacks Repelled . | . . . . . . . . . . . . . . . . . . . . . . . . . . . . . . . . . Allies | -11 -10 -9 -9 -9 -8 -8 -8 -8 -8 -8 -8 -7 -7 -6 -6 -5 -5 -5 -5 -4 -4 -4 -4 -4 -3 -3 -2 -2 -2 -2 -2 -2 -------- Run | Jun Mat Mat Min Exi Min Mat Gar Mat Gar Mat Gar Fac Gar Fac Gar Fac Upp Upp War Pro Fac Gar Fac Gar Res Gar Res Gar Res Gar Res Tes Total Allies 113 | . . . 3 . . 1 2 . 2 . 2 24 3 11 15 3 1 9 . 1 1 8 . 3 1 1 13 9 . . . . Largest Group 20 | . . . 3 1 1 1 2 . 2 . 1 20 14 8 8 2 1 3 . 1 1 3 1 1 1 1 11 7 4 . . . Highest-Rated Group 694 | . . . 40 16 16 9 59 . 45 . 16 676 401 277 295 137 30 108 . 47 42 253 119 99 137 64 694 453 212 . . . Highest-Rated Ally 178 | . . . 16 16 16 9 39 . 25 . 16 37 95 95 116 137 30 49 . 47 42 119 119 99 137 64 178 178 64 . . . Total Orders 39 | . . . . . . . . . . . . 15 4 15 . 1 . . . . . 1 . 2 . . 1 . . . . . STAY 17 | . . . . . . . . . . . . 7 1 6 . 1 . . . . . 1 . 1 . . . . . . . . FOLLOW 13 | . . . . . . . . . . . . 5 . 7 . . . . . . . . . 1 . . . . . . . . AID 9 | . . . . . . . . . . . . 3 3 2 . . . . . . . . . . . . 1 . . . . . Ally Attacks 626 | . . . . . 2 . 13 . 11 . 6 64 67 48 139 11 1 38 . 2 . 41 8 7 8 5 75 64 16 . . . Total Damage 23989 | . . . . . 30 . 209 . 350 . 35 2095 2487 1954 6176 458 33 806 . 42 . 1789 322 173 297 236 2828 3239 430 . . . Kills 154 | . . . . . . . 2 . 4 . . 17 25 17 36 3 . 4 . . . 15 2 2 . 1 11 13 2 . . . Allies Corrupted 5 | . . . . . . . . . . . . . . . . . . 3 . . . . . . . . 1 1 . . . . Allies Melted 5 | . . . . . . . . . . . . . . . . . . 2 . . 1 1 . . . 1 . . . . . . Intel | -11 -10 -9 -9 -9 -8 -8 -8 -8 -8 -8 -8 -7 -7 -6 -6 -5 -5 -5 -5 -4 -4 -4 -4 -4 -3 -3 -2 -2 -2 -2 -2 -2 ------- Run | Jun Mat Mat Min Exi Min Mat Gar Mat Gar Mat Gar Fac Gar Fac Gar Fac Upp Upp War Pro Fac Gar Fac Gar Res Gar Res Gar Res Gar Res Tes Robot Analysis Total 1 | . . . . . . . . . . . . 1 . . . . . . . . . . . . . . . . . . . . Derelict Logs Recovered 2 | . . . 1 . . . . . . . . . . . . . . 1 . . . . . . . . . . . . . . Drone Launches . | . . . . . . . . . . . . . . . . . . . . . . . . . . . . . . . . . Drone Recoveries . | . . . . . . . . . . . . . . . . . . . . . . . . . . . . . . . . . Exploration | -11 -10 -9 -9 -9 -8 -8 -8 -8 -8 -8 -8 -7 -7 -6 -6 -5 -5 -5 -5 -4 -4 -4 -4 -4 -3 -3 -2 -2 -2 -2 -2 -2 ------------- Run | Jun Mat Mat Min Exi Min Mat Gar Mat Gar Mat Gar Fac Gar Fac Gar Fac Upp Upp War Pro Fac Gar Fac Gar Res Gar Res Gar Res Gar Res Tes Turns Passed 32185 | 68 405 1419 574 320 1010 1383 2497 908 2800 688 696 2592 1012 814 1627 2617 833 1219 147 589 856 2103 484 1028 132 850 634 908 302 498 52 120 Spaces Moved 14808 | 42 247 701 374 220 576 581 847 305 1029 228 227 1489 800 549 729 1136 265 383 85 142 487 765 264 434 78 338 244 396 147 306 163 231 Core 18 | 4 . . . . . . . . . . . . . . . . 2 . . . . . . . . . . . . 12 . . Treads 5192 | . 21 59 12 . . 369 847 305 1029 228 130 . . . 97 488 216 300 . . . 719 6 . . 263 103 . . . . . Legs 10 | . . . . . . . . . . . . . . . . . . 10 . . . . . . . . . . . . . . Wheels 9026 | 38 226 642 362 220 576 212 . . . . 97 1489 800 549 632 648 47 73 85 142 487 46 258 434 78 75 141 396 147 126 . . Hover . | . . . . . . . . . . . . . . . . . . . . . . . . . . . . . . . . . Flight 562 | . . . . . . . . . . . . . . . . . . . . . . . . . . . . . . 168 163 231 Fastest Speed 26 | 50 100 115 115 145 145 120 246 246 243 243 243 110 112 112 112 110 125 175 175 160 107 120 170 150 150 145 190 190 190 31 31 26 Average Speed 172 | 98 114 134 126 145 158 168 246 246 244 243 255 133 112 112 185 179 258 279 175 169 126 211 171 155 150 191 204 190 190 107 31 28 Slowest Speed 2350 | 100 160 240 240 145 160 320 246 246 325 243 323 260 112 112 260 260 2150 560 175 175 160 250 243 170 150 225 225 190 190 2350 31 31 Overloaded Moves . | . . . . . . . . . . . . . . . . . . . . . . . . . . . . . . . . . Propulsion Burnouts . | . . . . . . . . . . . . . . . . . . . . . . . . . . . . . . . . . Robots Hopped 1 | . . . . . . . . . . . . . . . . . . . . . . . . . . . . . . . . 1 Cave-ins Triggered 2 | . . . . . . . . . . . . . . . . . . . . . . . . . . 1 . . . 1 . . Exploration Rate (%) 41 | 3 35 56 71 61 93 43 73 24 99 24 41 28 98 11 74 30 47 59 15 29 10 92 10 41 2 39 10 44 6 42 7 36 Regions Visited 32 Branch Regions 8 Pre-discovered Areas 2 | . . . 1 1 . . . . . . . . . . . . . . . . . . . . . . . . . . . . Known Exits Taken 11 | . . . . . . 1 . 1 . 1 . 1 . 1 . . . . . 1 1 . 1 . 1 . 1 . 1 . . . Unknown Exits Taken 11 | 1 1 1 1 1 1 . . . . . . . . . . 1 1 1 1 . . . . . . . . . . . 1 . Scrap Searched 5 | . . . 1 . 1 . . . . . . . . . . . 2 1 . . . . . . . . . . . . . . Spaces Dug 131 | . . . . . . 6 . 10 17 6 . . . . . 4 . . . . 8 . 7 7 3 40 9 2 11 1 . . Terrain Destroyed 586 | . . 11 . . 35 11 8 106 51 12 . . . . . 12 16 6 . 9 9 90 7 96 3 40 9 26 12 17 . . Melee 65 | . . . . . . . . . . . . . . . . 4 . . . . 8 . . . 3 40 9 . . 1 . . Projectile 176 | . . . . . 20 5 8 1 . 12 . . . . . 8 16 6 . 9 1 34 7 23 . . . 7 12 7 . . AOE 345 | . . 11 . . 15 6 . 105 51 . . . . . . . . . . . . 56 . 73 . . . 19 . 9 . . Terrain Rammed . | . . . . . . . . . . . . . . . . . . . . . . . . . . . . . . . . . Walls Destroyed . | . . . . . . . . . . . . . . . . . . . . . . . . . . . . . . . . . Machines Disabled . | . . . . . . . . . . . . . . . . . . . . . . . . . . . . . . . . . Actions | -11 -10 -9 -9 -9 -8 -8 -8 -8 -8 -8 -8 -7 -7 -6 -6 -5 -5 -5 -5 -4 -4 -4 -4 -4 -3 -3 -2 -2 -2 -2 -2 -2 --------- Run | Jun Mat Mat Min Exi Min Mat Gar Mat Gar Mat Gar Fac Gar Fac Gar Fac Upp Upp War Pro Fac Gar Fac Gar Res Gar Res Gar Res Gar Res Tes Total 19575 | 66 329 1022 433 220 643 858 1096 393 1197 341 303 2049 898 727 948 1550 338 469 84 445 670 1113 288 657 87 458 362 514 160 410 163 284 Wait 2566 | 15 44 177 20 . 44 150 78 34 39 87 27 474 45 142 77 214 20 15 . 271 70 132 12 110 . 44 88 61 1 29 . 46 Move 14761 | 41 246 700 373 219 575 580 844 304 1025 228 225 1488 798 548 727 1135 264 382 84 141 486 763 263 432 77 335 243 394 146 304 162 229 Hop 1 | . . . . . . . . . . . . . . . . . . . . . . . . . . . . . . . . 1 Pick Up 228 | 5 8 17 5 . 1 14 14 1 8 3 4 5 18 2 15 17 5 3 . . 29 33 1 6 . 2 . 8 1 3 . . Fast Attach 159 | 5 1 6 2 1 . 10 6 1 12 1 4 7 . . 7 12 4 7 . . 16 24 1 7 1 6 . 3 . 11 1 3 Attach 123 | . 1 4 1 . 3 7 3 1 7 1 3 14 . 8 8 11 4 . . 2 6 13 1 3 2 2 9 . . 8 . 1 Detach 17 | . . 1 2 . . 2 . . . . 2 2 . 1 1 . . . . . . 2 . . . 1 2 . . . . 1 Swap 185 | . 4 12 6 . 1 18 7 12 7 2 2 11 6 5 14 18 2 10 . 3 6 20 1 5 . 2 1 6 . 4 . . Drop 185 | . 3 16 5 . 3 13 19 4 9 2 2 5 5 1 8 17 . 3 . 1 12 33 2 5 1 5 . 3 1 4 . 3 Fire 997 | . 22 78 19 . 16 59 94 36 82 15 24 25 13 20 36 100 37 34 . 27 11 74 7 78 3 10 9 34 11 23 . . Melee 189 | . . 4 . . . . . . . . . 1 . . 23 9 . 14 . . 34 17 . 11 3 50 10 . . 13 . . Ram 1 | . . . . . . . . . . . . 1 . . . . . . . . . . . . . . . . . . . . Kick . | . . . . . . . . . . . . . . . . . . . . . . . . . . . . . . . . . Crush 5 | . . . . . . . . . . 1 4 . . . . . . . . . . . . . . . . . . . . . Escape Stasis 92 | . . . . . . . 31 . 8 . 6 . 8 . 28 . . . . . . 2 . . . 1 . . . 8 . . Rewire 27 | . . . . . . 5 . . . 1 . 2 5 . 4 2 2 1 . . . . . . . . . 5 . . . . Trap 39 | . . 7 . . . . . . . . . 14 . . . 15 . . . . . . . . . . . . . 3 . . Miscellaneous . | . . . . . . . . . . . . . . . . . . . . . . . . . . . . . . . . . Route ------- -11/Junkyard -10/Materials -9/Materials (discovered 3 exits: *Mat / *Min x2) -9/Mines (discovered 2 exits: *Mat / *Exi) -9/Exiles -8/Mines -8/Materials (discovered 3 exits: *Fac x2 / Gar) -8/Garrison (discovered 4 exits: *Mat x4) -8/Materials -8/Garrison (discovered 3 exits: *Mat x3) -8/Materials -8/Garrison -7/Factory (discovered 3 exits: *Fac x2 / Gar) -7/Garrison (discovered 3 exits: *Fac x3) -6/Factory -6/Garrison (discovered 2 exits: *Fac x2) -5/Factory (discovered 2 exits: [*Upp x2]) -5/Upper Caves -5/Upper Caves (discovered 2 exits: *Fac / [*War]) -5/Warlord -4/Proximity Caves -4/Factory -4/Garrison (discovered 3 exits: *Fac x3) -4/Factory -4/Garrison -3/Research -3/Garrison (discovered 2 exits: *Res x2) -2/Research -2/Garrison -2/Research -2/Garrison -2/Research -2/Testing (discovered 1 exit: [*Acc]) History --------- Turn | Location | Event 30 | -11/Junkyard | Discovered new exit (range 16) 69 | -11/Junkyard | Entered Materials 311 | -10/Materials | Build established: Mutant 355 | -10/Materials | Discovered new exit (range 3) 474 | -10/Materials | Entered another Materials area 474 | -9/Materials | Evolved 2 slots: Power x1, Weapon x1 495 | -9/Materials | Discovered new exit (range 16) 815 | -9/Materials | Build established: Gunner 1453 | -9/Materials | Discovered new exit (range 15) 1716 | -9/Materials | Lost 3 parts (1u2w) 1839 | -9/Materials | Discovered new exit (range 16) 1893 | -9/Materials | Entered Mines 2000 | -9/Mines | Build established: Scavenger-Gunner 2196 | -9/Mines | Assisted by bots powering up and referring to "LRC-V3" 2267 | -9/Mines | Discovered new exit (range 9) 2342 | -9/Mines | Met a Derelict who couldn't figure out how to use a Trap Extractor 2452 | -9/Mines | Deemed a non-threat by the Exiles lab entrance 2452 | -9/Mines | Discovered new exit (range 5) 2462 | -9/Mines | System corruption reached 10% 2467 | -9/Mines | Entered Exiles 2467 | -9/Exiles | Accompanied by 1 ally 2502 | -9/Exiles | Met 8R-AWN 2527 | -9/Exiles | Met EX-HEX 2570 | -9/Exiles | Met EX-BIN 2586 | -9/Exiles | Aligned with FarCom system 2588 | -9/Exiles | Given EX-Vault access code 2624 | -9/Exiles | Opened EX-Vault 2637 | -9/Exiles | Found AWS/Gauss 2669 | -9/Exiles | Warned to stay clear of 0b10 Research branches 2685 | -9/Exiles | Exiles lab attacked by MAIN.C 2727 | -9/Exiles | Learned location of Zion (-6) 2771 | -9/Exiles | Discovered new exit (range 12) 2772 | -9/Exiles | Build established: Mutant 2787 | -9/Exiles | Left Exiles lab with AWS/Gauss 2787 | -9/Exiles | Entered Mines 2787 | -8/Mines | Accompanied by 1 ally 3648 | -8/Mines | Discovered new exit (range 6) 3797 | -8/Mines | Entered Materials 3797 | -8/Materials | Evolved 2 slots: Propulsion x1, Utility x1 4074 | -8/Materials | Repaired Broken Arc Projector 4735 | -8/Materials | Discovered new exit (range 16) 4924 | -8/Materials | Build established: Scavenger-Skirmisher 5059 | -8/Materials | Garrison activated, responded to threat 5088 | -8/Materials | System corruption reached 10% 5122 | -8/Materials | Discovered new exit (range 7) 5167 | -8/Materials | Identified exit to Garrison 5180 | -8/Materials | Entered Garrison 5238 | -8/Garrison | Triggered checkpoint 5319 | -8/Garrison | Rescued a captive Derelict 5319 | -8/Garrison | Rescued a captive Derelict 5454 | -8/Garrison | Build established: Scavenger-Mutant 5469 | -8/Garrison | Triggered checkpoint 5490 | -8/Garrison | Triggered checkpoint 5728 | -8/Garrison | Discovered new exit (range 14) 5820 | -8/Garrison | Triggered checkpoint 5835 | -8/Garrison | Build established: Scavenger-Skirmisher 5896 | -8/Garrison | Garrison Relay disabled 6042 | -8/Garrison | Triggered checkpoint 6094 | -8/Garrison | Triggered checkpoint 6268 | -8/Garrison | Triggered checkpoint 6337 | -8/Garrison | Garrison Relay disabled 6430 | -8/Garrison | Discovered new exit (range 10) 6476 | -8/Garrison | Triggered checkpoint 6555 | -8/Garrison | Discovered new exit (range 5) 6615 | -8/Garrison | Lost 3 parts (2p1w) 6868 | -8/Garrison | Discovered new exit (range 9) 6882 | -8/Garrison | Build established: Scavenger-Mutant 7074 | -8/Garrison | Garrison Relay disabled 7153 | -8/Garrison | Garrison Relay disabled 7571 | -8/Garrison | Attempted to access garrison exit controls, blocked by remote lockdown 7586 | -8/Garrison | Build established: Scavenger-Skirmisher 7677 | -8/Garrison | Entered Materials 8263 | -8/Materials | Build established: Scavenger-Mutant 8578 | -8/Materials | Identified exit to Garrison 8585 | -8/Materials | Entered Garrison 8648 | -8/Garrison | Garrison Relay disabled 8677 | -8/Garrison | Triggered checkpoint 8752 | -8/Garrison | Garrison Relay disabled 8823 | -8/Garrison | Rescued a captive Derelict 8828 | -8/Garrison | Rescued a captive Derelict 8912 | -8/Garrison | Triggered checkpoint 8925 | -8/Garrison | Triggered checkpoint 8975 | -8/Garrison | Triggered checkpoint 9008 | -8/Garrison | Triggered checkpoint 9130 | -8/Garrison | Triggered checkpoint 9293 | -8/Garrison | Discovered new exit (range 14) 9541 | -8/Garrison | Triggered checkpoint 9661 | -8/Garrison | Lost 3 parts (1u2w) 9725 | -8/Garrison | Discovered new exit (range 14) 10068 | -8/Garrison | Triggered checkpoint 10146 | -8/Garrison | Lost 5 parts (2p1n2w) 10251 | -8/Garrison | Core integrity fell below 50% 10272 | -8/Garrison | Lost 5 parts (2n1u2w) 10465 | -8/Garrison | Discovered new exit (range 14) 10876 | -8/Garrison | Garrison Relay disabled 10981 | -8/Garrison | Attempted to access garrison exit controls, blocked by remote lockdown 11278 | -8/Garrison | Installed Relay Interface Framework 11385 | -8/Garrison | Entered Materials 12072 | -8/Materials | Build established: Mutant 12073 | -8/Materials | Identified exit to Garrison 12073 | -8/Materials | Entered Garrison 12120 | -8/Garrison | Expanded RIF knowledge: Structural Interface 12240 | -8/Garrison | Triggered checkpoint 12285 | -8/Garrison | Garrison Relay disabled 12322 | -8/Garrison | Triggered checkpoint 12482 | -8/Garrison | Triggered checkpoint 12598 | -8/Garrison | Triggered checkpoint 12683 | -8/Garrison | Discovered new exit (range 10) 12769 | -8/Garrison | Entered Factory 12769 | -7/Factory | Evolved 2 slots: Propulsion x1, Utility x1 12769 | -7/Factory | Discovered new exit (range 13) 13570 | -7/Factory | Discovered new exit (range 16) 13771 | -7/Factory | Central database locked down 13935 | -7/Factory | Fabricated P-60 Hacker? 13997 | -7/Factory | Fabricated M-13 Machinist? 14098 | -7/Factory | Fabricated P-60 Hacker? 14311 | -7/Factory | Fabricated P-60 Hacker? 14443 | -7/Factory | Fabricated P-60 Hacker? 14607 | -7/Factory | Fabricated P-60 Hacker? 14716 | -7/Factory | Fabricated P-60 Hacker (x2) 14786 | -7/Factory | Fabricated P-60 Hacker (x2) 14862 | -7/Factory | Fabricated P-60 Hacker (x2) 14936 | -7/Factory | Fabricated P-60 Hacker (x2) 14946 | -7/Factory | Build established: Commander-Mutant 15348 | -7/Factory | Identified exit to Garrison 15361 | -7/Factory | Entered Garrison 15361 | -7/Garrison | Accompanied by 13 allies 15386 | -7/Garrison | Triggered checkpoint 15411 | -7/Garrison | Garrison Relay disabled 15496 | -7/Garrison | Learned Factory security intel 15553 | -7/Garrison | Triggered checkpoint 15586 | -7/Garrison | Triggered checkpoint 15607 | -7/Garrison | Triggered checkpoint 15627 | -7/Garrison | Triggered checkpoint 15699 | -7/Garrison | Found embedded Infiltrators 15736 | -7/Garrison | Expanded RIF knowledge: Zone Cloak 15763 | -7/Garrison | Discovered new exit (range 11) 15863 | -7/Garrison | Garrison Relay disabled 15902 | -7/Garrison | Discovered new exit (range 12) 15924 | -7/Garrison | Build established: Bothacker-Mutant 15929 | -7/Garrison | Garrison Relay disabled 16067 | -7/Garrison | Discovered new exit (range 10) 16074 | -7/Garrison | Triggered checkpoint 16136 | -7/Garrison | Garrison Relay disabled 16373 | -7/Garrison | Entered Factory 16373 | -6/Factory | Accompanied by 5 allies 16373 | -6/Factory | Evolved 2 slots: Utility x2 16653 | -6/Factory | Fabricated P-60 Hacker (x2) 16833 | -6/Factory | Fabricated P-60 Hacker? 16963 | -6/Factory | Fabricated P-60 Hacker (x2) 17013 | -6/Factory | Fabricated M-13 Machinist (x1) 17098 | -6/Factory | Fabricated P-60 Hacker? 17181 | -6/Factory | Identified exit to Garrison 17187 | -6/Factory | Entered Garrison 17187 | -6/Garrison | Accompanied by 8 allies 17202 | -6/Garrison | Triggered checkpoint 17234 | -6/Garrison | Garrison Relay disabled 17296 | -6/Garrison | Rescued a captive Derelict 17296 | -6/Garrison | Rescued a captive Derelict 17387 | -6/Garrison | Rewired B-86 Titan 17523 | -6/Garrison | Spotted B-75 Beast 17536 | -6/Garrison | Triggered checkpoint 17542 | -6/Garrison | Triggered checkpoint 17543 | -6/Garrison | Triggered checkpoint 17562 | -6/Garrison | Triggered checkpoint 17573 | -6/Garrison | Allies destroyed B-75 Beast 17690 | -6/Garrison | Expanded RIF knowledge: Threat Obfuscation 17771 | -6/Garrison | Discovered new exit (range 14) 17784 | -6/Garrison | Lost 3 parts (3n) 17886 | -6/Garrison | Found Unknown Device 17886 | -6/Garrison | Identified Launcher Loader 18049 | -6/Garrison | Build established: Botlord-Skirmisher 18050 | -6/Garrison | Garrison Relay disabled 18190 | -6/Garrison | Triggered checkpoint 18212 | -6/Garrison | Triggered checkpoint 18356 | -6/Garrison | Triggered checkpoint 18367 | -6/Garrison | Build established: Botlord-Mutant 18687 | -6/Garrison | Discovered new exit (range 9) 18716 | -6/Garrison | Expanded RIF knowledge: Hotswap 18765 | -6/Garrison | Spotted B-75 Beast 18814 | -6/Garrison | Entered Factory 18814 | -5/Factory | Evolved 2 slots: Utility x2 19345 | -5/Factory | Fabricated Cmb. Linear Gravjet? 19768 | -5/Factory | Destroyed 9 combat bots 20095 | -5/Factory | Repaired Lgt. Treads 20308 | -5/Factory | System corruption reached 10% 20347 | -5/Factory | Lost 4 parts (3n1u) 20919 | -5/Factory | Discovered new exit (range 9) 21088 | -5/Factory | Lost 3 parts (2n1w) 21409 | -5/Factory | Discovered new exit (range 11) 21431 | -5/Factory | Entered Upper Caves 21544 | -5/Upper Caves | Lost 5 parts (3n1u1w) 21655 | -5/Upper Caves | Lost 4 parts (1n2u1w) 21891 | -5/Upper Caves | Attracted the attention of an 0b10 outpost 22195 | -5/Upper Caves | Build established: Botlord-Tank 22237 | -5/Upper Caves | Discovered new exit (range 10) 22260 | -5/Upper Caves | Attracted the attention of an 0b10 checkpoint 22264 | -5/Upper Caves | Entered another Upper Caves area 22264 | -5/Upper Caves | Accompanied by 1 ally 22291 | -5/Upper Caves | Discovered new exit (range 5) 22836 | -5/Upper Caves | Build established: Botlord-Mutant 22995 | -5/Upper Caves | Attracted the attention of an 0b10 outpost 23315 | -5/Upper Caves | System corruption reached 30% 23457 | -5/Upper Caves | Learned location of 1 exit from Proximity Caves 23464 | -5/Upper Caves | Discovered new exit (range 2) 23483 | -5/Upper Caves | Entered Warlord 23541 | -5/Warlord | System corruption cleaned by Quarantine Array 23547 | -5/Warlord | RIF detected upon attempting to enter Warlord's base 23547 | -5/Warlord | Attacked by Warlord forces 23559 | -5/Warlord | Build established: Bothacker-Mutant 23609 | -5/Warlord | Discovered new exit (range 14) 23630 | -5/Warlord | Entered Proximity Caves 23631 | -4/Proximity Caves | Identified exit to Factory 23641 | -4/Proximity Caves | Attracted the attention of an 0b10 checkpoint 23891 | -4/Proximity Caves | Lost 3 parts (1p1u1w) 24088 | -4/Proximity Caves | Received a Behemoth hack from an annoying Tinkerer 24219 | -4/Proximity Caves | Entered Factory 24219 | -4/Factory | Evolved 2 slots: Utility x2 24363 | -4/Factory | Fabricated Adv. Hacking Suite? 24473 | -4/Factory | Lost 3 parts (1p2u) 24646 | -4/Factory | Hacking Suite fried by hacking feedback 24646 | -4/Factory | Adv. Hacking Suite fried by hacking feedback 24842 | -4/Factory | Repaired Huge Storage Unit 25074 | -4/Factory | Identified exit to Garrison 25075 | -4/Factory | Entered Garrison 25104 | -4/Garrison | Spotted B-86 Titan 25120 | -4/Garrison | Hijacked Titan 7a control node with streamctrl_high 25238 | -4/Garrison | Triggered checkpoint 25288 | -4/Garrison | Garrison Relay disabled 25363 | -4/Garrison | Spotted B-86 Titan 25373 | -4/Garrison | Befriended a Behemoth using the annoying Tinkerer's hack 25377 | -4/Garrison | Triggered checkpoint 25380 | -4/Garrison | Triggered checkpoint 25395 | -4/Garrison | Allies destroyed Titan 7a 25396 | -4/Garrison | Triggered checkpoint 25404 | -4/Garrison | Triggered checkpoint 25492 | -4/Garrison | Lost 7 parts (2p3u2w) 25752 | -4/Garrison | Lost 3 parts (1n2u) 25768 | -4/Garrison | Found Unknown Launcher 25768 | -4/Garrison | Identified Gamma Bomb Array 25792 | -4/Garrison | Found Gamma Bomb Array 25802 | -4/Garrison | Found Unknown Device 25802 | -4/Garrison | Identified Antimissile System 25814 | -4/Garrison | Lost 3 parts (1n2w) 25822 | -4/Garrison | Triggered checkpoint 25862 | -4/Garrison | Phase Generator disabled 25863 | -4/Garrison | Discovered new exit (range 8) 26117 | -4/Garrison | Lost 3 parts (2p1n) 26163 | -4/Garrison | Core integrity fell below 50% 26196 | -4/Garrison | Lost 3 parts (1u2w) 26518 | -4/Garrison | Build established: Scavenger-Tank 26563 | -4/Garrison | Garrison Relay disabled 26640 | -4/Garrison | Discovered new exit (range 11) 26691 | -4/Garrison | Spotted Executioner 26698 | -4/Garrison | Triggered checkpoint 26734 | -4/Garrison | Spotted Striker 26746 | -4/Garrison | Rewired Executioner 26868 | -4/Garrison | Build established: Bothacker-Mutant 27004 | -4/Garrison | Discovered new exit (range 9) 27033 | -4/Garrison | Expanded RIF knowledge: Robot Detection 27178 | -4/Garrison | Entered Factory 27178 | -4/Factory | Accompanied by 1 ally 27332 | -4/Factory | Build established: Botlord-Mutant 27653 | -4/Factory | Identified exit to Garrison 27662 | -4/Factory | Entered Garrison 27760 | -4/Garrison | Triggered checkpoint 27795 | -4/Garrison | Garrison Relay disabled 27860 | -4/Garrison | Discovered new exit (range 3) 27882 | -4/Garrison | Triggered checkpoint 28125 | -4/Garrison | Garrison Relay disabled 28181 | -4/Garrison | System corruption reached 10% 28203 | -4/Garrison | Garrison Relay disabled 28206 | -4/Garrison | Garrison Relay disabled 28250 | -4/Garrison | Lost 4 parts (1p2u1w) 28375 | -4/Garrison | Phase Generator disabled 28390 | -4/Garrison | Rewired Striker 28496 | -4/Garrison | Spotted Striker 28690 | -4/Garrison | Entered Research 28690 | -3/Research | Accompanied by 1 ally 28690 | -3/Research | Evolved 2 slots: Power x1, Propulsion x1 28808 | -3/Research | Identified exit to Garrison 28822 | -3/Research | Entered Garrison 29013 | -3/Garrison | Discovered new exit (range 7) 29066 | -3/Garrison | Triggered checkpoint 29126 | -3/Garrison | Garrison Relay disabled 29378 | -3/Garrison | Crushed by falling debris 29532 | -3/Garrison | Triggered checkpoint 29543 | -3/Garrison | Discovered new exit (range 11) 29563 | -3/Garrison | Expanded RIF knowledge: Zone Cloak 29672 | -3/Garrison | Entered Research 29672 | -2/Research | Evolved 2 slots: Propulsion x1, Utility x1 29704 | -2/Research | Spotted B-90 Cyclops 29710 | -2/Research | Befriended a Behemoth using the annoying Tinkerer's hack 29869 | -2/Research | Fabricated L-61 Swordsman (x3) 29940 | -2/Research | Fabricated P-60 Hacker (x2) 30014 | -2/Research | Fabricated P-60 Hacker (x2) 30088 | -2/Research | Fabricated P-60 Hacker? 30146 | -2/Research | Hacker 9a assimilated hostile G-73 Enforcer 30156 | -2/Research | Hacker 9b assimilated hostile G-73 Enforcer 30232 | -2/Research | Identified exit to Garrison 30306 | -2/Research | Entered Garrison 30306 | -2/Garrison | Accompanied by 6 allies 30331 | -2/Garrison | Spotted B-75 Beast 30344 | -2/Garrison | Allies destroyed B-75 Beast 30371 | -2/Garrison | Rewired B-75 Beast 30443 | -2/Garrison | Spotted B-90 Cyclops 30484 | -2/Garrison | Allies destroyed B-90 Cyclops 30850 | -2/Garrison | System corruption reached 10% 31102 | -2/Garrison | Discovered new exit (range 10) 31168 | -2/Garrison | Rescued a captive Derelict 31169 | -2/Garrison | Rescued a captive Derelict 31214 | -2/Garrison | Entered Research 31214 | -2/Research | Accompanied by 4 allies 31420 | -2/Research | Garrison activated, responded to threat 31469 | -2/Research | Identified exit to Garrison 31516 | -2/Research | Entered Garrison 31533 | -2/Garrison | Heavy support dispatched to Research 31664 | -2/Garrison | Lost 4 parts (2u2w) 31721 | -2/Garrison | Heavy support dispatched to Research 31776 | -2/Garrison | Triggered checkpoint 31839 | -2/Garrison | Crushed by falling debris 31899 | -2/Garrison | Core integrity fell below 50% 31908 | -2/Garrison | Core integrity fell below 20% 31911 | -2/Garrison | Heavy support dispatched to Research 31918 | -2/Garrison | System corruption reached 30% 31952 | -2/Garrison | Lost 25 parts (6p7n7u5w) 32009 | -2/Garrison | Discovered new exit (range 15) 32014 | -2/Garrison | Entered Research 32065 | -2/Research | Discovered new exit (range 5) 32066 | -2/Research | Entered Testing 32067 | -2/Testing | Maximum security lockdown engaged 32071 | -2/Testing | Protovariant out of control (PY-RKVFF3XLTJ) 32179 | -2/Testing | Discovered new exit (range 15) 32186 | -2/Testing | Destroyed by Tiamat Bomb Trap Last Messages --------------- 32158_ Dropped Xenon Bombardment Thruster. 32159_ Acquired Unknown Flight Unit. 32159_ Identified Field Propulsion Array. 32163_ Dropped Authchip [R/Combat]. 32167_ ALERT: Assault forces dispatched. 32171_ C-30 ARC bursts open, deploying its payload. 32171_ G-73 Enforcer unfolds itself. 32171_ L-61 Swordsman unfolds itself. 32171_ B-74 Champion unfolds itself. 32171_ I-47 Archangel unfolds itself. 32172_ System corrupted: Component data lost. 32179_ EXIT=FOUND 32179_ C-30 ARC bursts open, deploying its payload. 32179_ G-73 Enforcer unfolds itself. 32179_ B-74 Champion unfolds itself. 32179_ G-73 Enforcer unfolds itself. 32179_ M-36 Artificer unfolds itself. 32186_ Triggered Tiamat Bomb Trap. 32186_ An explosion rips through the floor. [Achievement: Collector] Map ----- +----------------------------------------------------+ | #????????????????????????????????? | | #????????????????????????????????? | | +????????????????????????????????? | | #????????????????????????????????? | | ########+### #????????????????????????????????? | | #?????????????????????????????????????? | | """" """"" #?????????????????????????????????????? | | """" """"" #?????????????????????????????????????? | | """" """"" #?????????????????????????????????????? | | #?????????????????????????????????????? | | + #????????????????????????????????? | | #####+#######/###????????????????????????????????? | | ?# =#??????????????????????????????????????? | | ?# "" #??????????????????????????????????????? | | ##""" """ #??????????????????????????????????????? | | #"R """ #??????????????????????????????????????? | | #""" """ #??????????????????????????????????????? | | "#""" """ #??????????????????????????????????????? | | "# """ #??????????????????????????????????????? | | "# #??????????????????????o? #????????????? | | "# ] #?????????????????????? #????????????? | | ###+###############+########### #????????????? | | +????????????? | | w ??????????????? | | """""???????????????? | | @ """""???????????????? | | ############+############ """""???????????????? | | =#????#= #????# """"????????????????? | | #????# """""" #????" ???????????????? | | #????# ""S""" #????" """"" ??????????????? | | "" #????# """ #???? """""???????????????? | | "" #????# """ #????" """""?g?????????????? | | "" #????# """ #???"" """?????????????????? | | #????# """ !#????# ?????????????????? | | #????# #????? ?????????????????? | | /#############b########## ###?????????????????? | | l g #???????????????????? | | ! gg #???????????????????? | | ! g #???????????????????? | | l #???????????????????? | | ########### Y#######????????????????????? | | #! """""YY#??????????????????????????? | | # """"%"i#??????????????????????????? | | # """"" ????????????????????????? | | ???" + """" ???????????????????????? | | ??" # " ??????????????????????? | | """ # "%" ?????????????????????? | | ###########/###